{"text_format":"1","workbook":"xlsx","n_sheets":1,"sheets":["Лист1"],"not_rendered":{"charts":0,"images":0,"macros":1,"external_links":0,"defined_names":0,"comments":0,"pivot_tables":0},"unopened":[],"bounds":{"document_bytes":16777216,"sheet_cells":100000,"rows_first":2000,"rows_last":500,"rows_between":2000,"halvings":0,"cell_chars":16384,"cell_head_chars":4096},"cells_cut":0,"cells_raw":0,"read":"whole","date_system":"1900"}

{"sheet":"Лист1","index":0,"n_rows":19,"n_cols":4,"rows_kept":19,"cut":false,"hidden":false,"merged":[]}
["фото","чтобы было как в ячейке С1","https://www.velocityk.ru/images/45105-tfa-000-a.jpg",{"$f":"AddressHyper(A1)","v":"https://www.velocityk.ru/images/45105-tfa--a-00.jpg"}]
["фото",null,null,{"$f":"AddressHyper(A2)","v":"https://www.velocityk.ru/images/45105-gm9-743-a.jpg"}]
["фото",null,null,"https://www.velocityk.ru/images/45105-de34-a00.jpg"]
["фото",null,null,"https://www.velocityk.ru/images/4312a-e60-000.jpg"]
["фото",null,null,"https://www.velocityk.ru/images/45105-ra1-000-a.jpg"]
["фото",null,null,"https://www.velocityk.ru/images/1pcr6hsa-3.jpg"]
["фото",null,null,"https://www.velocityk.ru/images/1pcr7e.jpg"]
["фото",null,null,"https://www.velocityk.ru/images/4312a-n7b-000.jpg"]
[]
[]
[]
[{"$f":"A1","v":"фото"},null,null,"https://www.velocityk.ru/images/45105-tfa-000-a.jpg"]
["фото",null,null,"https://www.velocityk.ru/images/45105-gm9-743-a.jpg"]
["фото",null,null,"https://www.velocityk.ru/images/45105-de34-a00.jpg"]
["фото",null,null,"https://www.velocityk.ru/images/4312a-e60-000.jpg"]
["фото",null,null,"https://www.velocityk.ru/images/45105-ra1-000-a.jpg"]
["фото",null,null,"https://www.velocityk.ru/images/1pcr6hsa-3.jpg"]
["фото",null,null,"https://www.velocityk.ru/images/1pcr7e.jpg"]
["фото",null,null,"https://www.velocityk.ru/images/4312a-n7b-000.jpg"]